[Event "Vienna Chess Open 2019"]
[Site "Vienna"]
[Date "2019.08.23"]
[Round "8.9"]
[White "Pfreundt, Jakob"]
[Black "Nielsen, Viktor Haarmark"]
[Result "1/2-1/2"]
[ECO "D45"]
[WhiteElo "2410"]
[BlackElo "2410"]
[Annotator "NA"]
[PlyCount "94"]
[EventDate "2019.08.17"]
[EventType "swiss"]
[EventCountry "AUT"]
[SourceTitle "playchess.com"]
[Source "ChessBase"]
[SourceQuality "1"]
[TimeControl "40/5400+30:1800+30"]

1. d4 {[%emt 0:00:00]} d5 {[%emt 0:00:00]} 2. c4 {[%emt 0:00:00]} c6 {[%emt 0:00:19]} 3. Nf3 {[%emt 0:03:32]} Nf6 {[%emt 0:02:52]} 4. Nc3 {[%emt 0:01:18]} e6 {[%emt 0:00:08]} 5. e3 {[%emt 0:01:39]} Nbd7 {[%emt 0:01:32]} 6. Be2 {[%emt 0:02:42]} Bd6 {[%emt 0:01:12]} 7. O-O {[%emt 0:01:27]} O-O {[%emt 0:00:10]} 8. Qc2 {[%emt 0:02:49]} b6 {[%emt 0:05:12]} 9. e4 {[%emt 0:05:08]} Nxe4 {[%emt 0:05:16]} 10. Nxe4 {[%emt 0:00:10]} dxe4 {[%emt 0:00:04]} 11. Qxe4 {[%emt 0:01:20]} Bb7 {[%emt 0:01:20]} 12. Rd1 {[%emt 0:10:13]} Qe7 {[%emt 0:02:10]} 13. Bg5 {[%emt 0:03:57]} f6 14. Bd3 {[%emt 0:03:43]} g6 {[%emt 0:06:18]} 15. Bh6 {[%emt 0:02:13]} Rfe8 {[%emt 0:00:43]} 16. h4 {[%emt 0:26:32]} f5 {[%emt 0:09:23]} 17. Qe2 {[%emt 0:02:36]} c5 {[%emt 0:00:20]} 18. dxc5 {[%emt 0:01:36]} Nxc5 {[%emt 0:01:19]} 19. Bc2 {[%emt 0:01:16]} Bc7 {[%emt 0:18:37]} 20. Ng5 {[%emt 0:02:55]} a5 {[%emt 0:02:39]} 21. b3 {[%emt 0:05:29]} Qf6 {[%emt 0:20:00]} 22. Rab1 {[%emt 0:09:13]} Rad8 {[%emt 0:00:40]} 23. Rxd8 {[%emt 0:04:19]} Rxd8 {[%emt 0:00:20]} 24. Rd1 {[%emt 0:00:08]} Rxd1+ {[%emt 0:02:15]} 25. Qxd1 {[%emt 0:00:07]} Qe5 {[%emt 0:04:14]} 26. g3 {[%emt 0:03:41]} Qc3 {[%emt 0:05:14]} 27. h5 {[%emt 0:03:13]} gxh5 {[%emt 0:03:13]} 28. Nh3 {[%emt 0:01:30]} Qf3 {[%emt 0:01:09]} 29. Qxf3 {[%emt 0:00:24]} Bxf3 {[%emt 0:00:02]} 30. a3 {[%emt 0:01:14]} Kf7 {[%emt 0:02:25]} 31. Ng5+ {[%emt 0:00:32]} Kg6 {[%emt 0:00:20]} 32. Nxf3 {[%emt 0:00:09]} Kxh6 {[%emt 0:00:05]} 33. b4 {[%emt 0:00:46]} axb4 {[%emt 0:00:52]} 34. axb4 {[%emt 0:00:01]} Nb7 {[%emt 0:03:13]} 35. Nd4 {[%emt 0:00:21]} Nd8 {[%emt 0:00:24]} 36. c5 {[%emt 0:01:00]} bxc5 {[%emt 0:01:02]} 37. bxc5 {[%emt 0:00:02]} Kg6 {[%emt 0:01:37]} 38. Nb5 {[%emt 0:00:29]} Bb8 {[%emt 0:01:14]} 39. Bd1 {[%emt 0:00:02]} e5 {[%emt 0:00:57]} 40. Bb3 {[%emt 0:00:06]} Kf6 {[%emt 0:00:29]} 41. Bd5 {[%emt 0:31:06]} e4 {[%emt 0:04:06]} 42. c6 {[%emt 0:00:00]} Ke5 {[%emt 0:02:02]} 43. c7 {[%emt 0:00:00]} Bxc7 {[%emt 0:00:04]} 44. Nxc7 {[%emt 0:00:00]} Kd6 {[%emt 0:00:02]} 45. Bg8 {[%emt 0:00:00]} Kxc7 {[%emt 0:00:03]} 46. Bxh7 {[%emt 0:00:00]} f4 {[%emt 0:00:20]} 47. gxf4 {[%emt 0:00:00]} Kd6 {[%emt 0:00:56]} 1/2-1/2

[Event "Vienna Chess Open 2019"]
[Site "Vienna"]
[Date "2019.08.23"]
[Round "8.10"]
[White "Swicarz, Maciej"]
[Black "Barp, Alberto"]
[Result "1-0"]
[ECO "C45"]
[WhiteElo "2411"]
[BlackElo "2411"]
[Annotator "NA"]
[PlyCount "113"]
[EventDate "2019.08.17"]
[EventType "swiss"]
[EventCountry "AUT"]
[SourceTitle "playchess.com"]
[Source "ChessBase"]
[SourceQuality "1"]
[TimeControl "40/5400+30:1800+30"]

1. e4 {[%emt 0:00:00]} e5 {[%emt 0:00:00]} 2. Nf3 {[%emt 0:00:00]} Nc6 {[%emt 0:00:00]} 3. d4 {[%emt 0:01:10]} exd4 {[%emt 0:00:00]} 4. Nxd4 {[%emt 0:00:07]} Bc5 {[%emt 0:00:01]} 5. Nb3 {[%emt 0:00:19]} Bb6 {[%emt 0:00:21]} 6. Nc3 {[%emt 0:00:19]} Nf6 {[%emt 0:03:01]} 7. Qe2 {[%emt 0:04:25]} d6 {[%emt 0:01:09]} 8. Be3 {[%emt 0:00:05]} O-O {[%emt 0:00:11]} 9. O-O-O {[%emt 0:00:36]} Be6 {[%emt 0:03:34]} 10. Kb1 {[%emt 0:01:22]} Qe7 {[%emt 0:07:27]} 11. f3 {[%emt 0:02:43]} Ne5 {[%emt 0:10:35]} 12. h3 {[%emt 0:12:11]} Nh5 {[%emt 0:20:11]} 13. Bxb6 {[%emt 0:06:48]} axb6 {[%emt 0:00:52]} 14. Qf2 {[%emt 0:00:41]} f5 {[%emt 0:04:19]} 15. exf5 {[%emt 0:03:03]} Rxf5 {[%emt 0:00:45]} 16. Nd4 {[%emt 0:05:43]} Rf7 {[%emt 0:02:50]} 17. g3 {[%emt 0:08:37]} Nf6 {[%emt 0:11:39]} 18. Nxe6 {[%emt 0:03:40]} Qxe6 {[%emt 0:00:36]} 19. Qe3 {[%emt 0:02:09]} Qe7 {[%emt 0:06:49]} 20. f4 {[%emt 0:02:44]} Ned7 {[%emt 0:00:56]} 21. Qd4 {[%emt 0:01:36]} c6 {[%emt 0:04:50]} 22. Qxd6 {[%emt 0:01:38]} Nd5 {[%emt 0:00:08]} 23. Qxe7 {[%emt 0:02:34]} Nxc3+ {[%emt 0:00:25]} 24. bxc3 {[%emt 0:00:02]} Rxe7 {[%emt 0:00:06]} 25. Bc4+ {[%emt 0:01:03]} Kf8 {[%emt 0:00:04]} 26. Rhe1 {[%emt 0:08:54]} Rae8 {[%emt 0:05:48]} 27. Rxe7 {[%emt 0:00:03]} Rxe7 {[%emt 0:00:05]} 28. Kc1 {[%emt 0:00:11]} h6 {[%emt 0:08:08]} 29. Rd6 {[%emt 0:05:08]} Nf6 {[%emt 0:01:40]} 30. Rd8+ {[%emt 0:01:10]} Re8 {[%emt 0:00:33]} 31. Rxe8+ {[%emt 0:00:14]} Kxe8 {[%emt 0:00:02]} 32. Bd3 {[%emt 0:00:23]} Ke7 {[%emt 0:00:25]} 33. Bg6 {[%emt 0:00:35]} Kd6 {[%emt 0:02:31]} 34. Kd2 {[%emt 0:00:45]} Kd5 {[%emt 0:01:04]} 35. Kd3 {[%emt 0:00:46]} Kd6 {[%emt 0:01:00]} 36. c4 {[%emt 0:02:50]} Ng8 {[%emt 0:01:02]} 37. g4 {[%emt 0:01:39]} Ne7 {[%emt 0:00:27]} 38. Bf7 {[%emt 0:01:18]} Nc8 {[%emt 0:00:42]} 39. Kd4 {[%emt 0:00:58]} Ke7 {[%emt 0:00:50]} 40. Bg6 {[%emt 0:00:24]} Kf6 {[%emt 0:00:45]} 41. Bd3 {[%emt 0:31:19]} g5 {[%emt 0:06:34]} 42. f5 {[%emt 0:00:00]} Ne7 {[%emt 0:00:42]} 43. c5 {[%emt 0:00:00]} b5 {[%emt 0:00:58]} 44. Be4 {[%emt 0:00:00]} Ng8 {[%emt 0:01:22]} 45. a3 {[%emt 0:00:00]} Ne7 {[%emt 0:03:16]} 46. c4 {[%emt 0:00:00]} bxc4 {[%emt 0:00:04]} 47. Kxc4 {[%emt 0:00:00]} Ke5 {[%emt 0:00:29]} 48. Bh1 {[%emt 0:00:00]} Ng8 {[%emt 0:07:57]} 49. a4 {[%emt 0:00:00]} Ne7 {[%emt 0:00:11]} 50. a5 {[%emt 0:00:00]} Kf6 {[%emt 0:00:10]} 51. Kd4 {[%emt 0:00:00]} h5 {[%emt 0:00:31]} 52. Be4 {[%emt 0:00:00]} h4 {[%emt 0:00:49]} 53. Bf3 {[%emt 0:00:00]} Nc8 {[%emt 0:00:20]} 54. a6 {[%emt 0:00:00]} bxa6 {[%emt 0:00:14]} 55. Bxc6 {[%emt 0:00:00]} a5 {[%emt 0:00:12]} 56. Ba4 {[%emt 0:00:00]} Ne7 {[%emt 0:00:15]} 57. c6 {[%emt 0:00:00]} 1-0

[Event "Vienna Chess Open 2019"]
[Site "Vienna"]
[Date "2019.08.23"]
[Round "8.10"]
[White "Fernandez Garcia, Jose Luis"]
[Black "Matt, Fabian"]
[Result "1-0"]
[ECO "C00"]
[WhiteElo "2271"]
[BlackElo "2271"]
[Annotator "NA"]
[PlyCount "99"]
[EventDate "2019.08.17"]
[EventType "swiss"]
[EventCountry "AUT"]
[SourceTitle "playchess.com"]
[Source "ChessBase"]
[SourceQuality "1"]
[TimeControl "40/5400+30:1800+30"]

1. e4 {[%emt 0:02:22]} e6 {[%emt 0:00:00]} 2. Nf3 {[%emt 0:00:10]} d5 {[%emt 0:00:03]} 3. exd5 {[%emt 0:00:07]} exd5 {[%emt 0:00:08]} 4. d4 {[%emt 0:00:05]} Bd6 {[%emt 0:00:12]} 5. c4 {[%emt 0:00:07]} c6 {[%emt 0:00:04]} 6. Nc3 {[%emt 0:00:07]} Ne7 {[%emt 0:00:06]} 7. Bd3 {[%emt 0:00:14]} O-O {[%emt 0:00:30]} 8. O-O {[%emt 0:00:07]} Nd7 {[%emt 0:00:30]} 9. cxd5 {[%emt 0:15:26]} Nxd5 {[%emt 0:00:16]} 10. Nxd5 {[%emt 0:00:07]} cxd5 {[%emt 0:00:05]} 11. Re1 {[%emt 0:00:05]} h6 {[%emt 0:07:02]} 12. Qb3 {[%emt 0:02:37]} Nf6 {[%emt 0:03:59]} 13. Bd2 {[%emt 0:01:16]} Qb6 {[%emt 0:11:23]} 14. Qxb6 {[%emt 0:05:55]} axb6 {[%emt 0:00:01]} 15. a3 {[%emt 0:00:08]} Bd7 {[%emt 0:07:46]} 16. Ne5 {[%emt 0:02:42]} Be8 {[%emt 0:00:11]} 17. Bb4 {[%emt 0:02:19]} Bxb4 {[%emt 0:00:43]} 18. axb4 {[%emt 0:00:05]} Bd7 {[%emt 0:01:49]} 19. f3 {[%emt 0:01:45]} Rxa1 {[%emt 0:03:39]} 20. Rxa1 {[%emt 0:00:06]} Rc8 {[%emt 0:00:23]} 21. Ra7 Rb8 {[%emt 0:00:08]} 22. Kf2 {[%emt 0:20:56]} Kf8 {[%emt 0:00:24]} 23. Ke3 {[%emt 0:00:26]} Ke7 {[%emt 0:00:35]} 24. h4 {[%emt 0:00:29]} Ne8 {[%emt 0:00:30]} 25. b5 {[%emt 0:14:06]} Nd6 {[%emt 0:09:07]} 26. Nc6+ {[%emt 0:00:18]} bxc6 {[%emt 0:00:51]} 27. bxc6 {[%emt 0:00:02]} Rd8 {[%emt 0:00:11]} 28. Kf4 {[%emt 0:01:40]} f6 {[%emt 0:00:07]} 29. h5 {[%emt 0:00:20]} Ke8 {[%emt 0:08:16]} 30. Bg6+ {[%emt 0:05:05]} Ke7 {[%emt 0:00:06]} 31. Bd3 {[%emt 0:02:40]} Ke8 {[%emt 0:00:09]} 32. Bg6+ {[%emt 0:00:05]} Ke7 {[%emt 0:00:04]} 33. Bb1 {[%emt 0:11:57]} Ke8 {[%emt 0:05:56]} 34. cxd7+ {[%emt 0:05:47]} Rxd7 {[%emt 0:00:05]} 35. Ra6 {[%emt 0:00:12]} b5 {[%emt 0:05:24]} 36. Bf5 {[%emt 0:00:54]} Rd8 {[%emt 0:00:41]} 37. Ra7 {[%emt 0:00:27]} Kf8 {[%emt 0:03:18]} 38. Be6 {[%emt 0:00:48]} b4 {[%emt 0:00:07]} 39. g4 {[%emt 0:04:07]} Nb5 {[%emt 0:01:13]} 40. Rf7+ {[%emt 0:00:23]} Ke8 {[%emt 0:00:01]} 41. Rxg7 {[%emt 0:32:26]} Nxd4 {[%emt 0:30:04]} 42. Bf5 {[%emt 0:00:00]} Nxf5 {[%emt 0:00:00]} 43. Rg8+ {[%emt 0:00:00]} Ke7 {[%emt 0:00:00]} 44. Rxd8 {[%emt 0:00:00]} Kxd8 {[%emt 0:00:00]} 45. Kxf5 {[%emt 0:00:00]} Ke7 {[%emt 0:00:00]} 46. f4 {[%emt 0:00:00]} d4 {[%emt 0:00:00]} 47. Ke4 {[%emt 0:00:00]} f5+ {[%emt 0:00:00]} 48. gxf5 {[%emt 0:00:00]} Kf6 {[%emt 0:00:00]} 49. Kxd4 {[%emt 0:00:00]} Kxf5 {[%emt 0:00:00]} 50. Ke3 {[%emt 0:00:00]} 1-0

[Event "Vienna Chess Open 2019"]
[Site "Vienna"]
[Date "2019.08.23"]
[Round "8.11"]
[White "Yurtseven, Melih"]
[Black "Nasuta, Grzegorz"]
[Result "0-1"]
[ECO "D10"]
[WhiteElo "2396"]
[BlackElo "2533"]
[Annotator "ChessBase"]
[PlyCount "73"]
[EventDate "2019.08.17"]
[EventType "swiss"]
[EventCountry "AUT"]
[SourceTitle "playchess.com"]
[Source "ChessBase"]
[SourceQuality "1"]
[TimeControl "40/5400+30:1800+30"]

1. d4 {[%emt 0:00:00]} d5 {[%emt 0:00:00]} 2. c4 {[%emt 0:00:09]} c6 {[%emt 0:00:00]} 3. cxd5 {[%emt 0:00:44]} cxd5 {[%emt 0:00:00]} 4. Bg5 {[%emt 0:00:05]} f6 {[%emt 0:01:24]} 5. Bd2 {[%emt 0:00:09]} Nc6 {[%emt 0:00:11]} 6. Nc3 {[%emt 0:00:07]} Bf5 {[%emt 0:19:02]} 7. e4 {[%emt 0:00:08]} dxe4 {[%emt 0:07:10]} 8. d5 {[%emt 0:00:06]} Ne5 {[%emt 0:00:09]} 9. Nh3 {[%emt 0:00:16]} g6 {[%emt 0:05:13]} 10. Nf4 {[%emt 0:08:02]} Kf7 {[%emt 0:16:32]} 11. Be2 {[%emt 0:12:25]} Bh6 {[%emt 0:04:37]} 12. O-O {[%emt 0:01:02]} Qd7 {[%emt 0:07:19]} 13. h3 {[%emt 0:08:03]} g5 {[%emt 0:03:20]} 14. Ne6 {[%emt 0:11:25]} Bxe6 {[%emt 0:04:12]} 15. dxe6+ {[%emt 0:00:05]} Qxe6 {[%emt 0:00:05]} 16. Nxe4 {[%emt 0:00:45]} Rd8 {[%emt 0:02:10]} 17. Qc2 {[%emt 0:11:16]} g4 {[%emt 0:07:11]} 18. Bc3 {[%emt 0:26:47]} gxh3 {[%emt 0:00:40]} 19. g3 {[%emt 0:00:34]} Kg7 {[%emt 0:00:06]} 20. Rad1 {[%emt 0:03:41]} Rxd1 {[%emt 0:01:33]} 21. Rxd1 {[%emt 0:00:10]} Qf5 {[%emt 0:00:04]} 22. f4 {[%emt 0:05:52]} Bxf4 {[%emt 0:06:17]} 23. gxf4 {[%emt 0:00:29]} Qg6+ {[%emt 0:03:23]} 24. Kf2 {[%emt 0:00:07]} Qg2+ {[%emt 0:00:01]} 25. Ke3 {[%emt 0:01:06]} Ng4+ {[%emt 0:01:07]} 26. Kd3 {[%emt 0:03:23]} N8h6 {[%emt 0:00:41]} 27. Bd4 {[%emt 0:01:32]} Rd8 {[%emt 0:03:52]} 28. Qc7 {[%emt 0:00:30]} Rxd4+ {[%emt 0:01:01]} 29. Kxd4 {[%emt 0:00:15]} Qxe2 {[%emt 0:00:22]} 30. Qxe7+ {[%emt 0:03:04]} Nf7 {[%emt 0:00:02]} 31. Rd2 {[%emt 0:00:34]} Qe3+ {[%emt 0:00:13]} 32. Kc4 {[%emt 0:01:28]} f5 {[%emt 0:01:54]} 33. Nd6 {[%emt 0:01:17]} Qxe7 {[%emt 0:00:31]} 34. Nxf5+ {[%emt 0:00:05]} Kf6 {[%emt 0:00:09]} 35. Nxe7 {[%emt 0:00:03]} Kxe7 {[%emt 0:00:09]} 36. Rd3 {[%emt 0:01:01]} Ng5 37. Kd4 0-1

[Event "Vienna Chess Open 2019"]
[Site "Vienna"]
[Date "2019.08.23"]
[Round "8.11"]
[White "Curien, Nicolas"]
[Black "Miedema, David"]
[Result "0-1"]
[ECO "D00"]
[WhiteElo "2371"]
[BlackElo "2371"]
[Annotator "NA"]
[PlyCount "50"]
[EventDate "2019.08.17"]
[EventType "swiss"]
[EventCountry "AUT"]
[SourceTitle "playchess.com"]
[Source "ChessBase"]
[SourceQuality "1"]
[TimeControl "40/5400+30:1800+30"]

1. d4 {[%emt 0:00:00]} d5 {[%emt 0:00:00]} 2. Bf4 {[%emt 0:01:31]} Nf6 {[%emt 0:00:00]} 3. e3 {[%emt 0:00:18]} c5 {[%emt 0:00:00]} 4. c3 {[%emt 0:00:11]} Qb6 {[%emt 0:00:00]} 5. Qb3 {[%emt 0:01:06]} c4 {[%emt 0:00:06]} 6. Qc2 {[%emt 0:00:16]} g6 {[%emt 0:00:05]} 7. Nd2 {[%emt 0:01:06]} Bf5 {[%emt 0:00:07]} 8. Qc1 {[%emt 0:00:08]} Bg7 {[%emt 0:00:05]} 9. h3 {[%emt 0:01:04]} O-O {[%emt 0:00:06]} 10. Ngf3 {[%emt 0:00:13]} Nc6 {[%emt 0:00:16]} 11. Be2 {[%emt 0:01:22]} Rfc8 {[%emt 0:00:10]} 12. O-O {[%emt 0:01:00]} Qd8 {[%emt 0:00:04]} 13. g4 {[%emt 0:07:52]} Bd7 {[%emt 0:02:02]} 14. Ne5 {[%emt 0:05:38]} Be6 {[%emt 0:00:50]} 15. b4 {[%emt 0:18:56]} Nxe5 {[%emt 0:16:56]} 16. Bxe5 {[%emt 0:01:42]} a5 {[%emt 0:00:08]} 17. Bxf6 {[%emt 0:03:42]} exf6 {[%emt 0:00:37]} 18. b5 {[%emt 0:08:55]} f5 {[%emt 0:00:15]} 19. Qd1 {[%emt 0:07:47]} fxg4 {[%emt 0:08:29]} 20. hxg4 {[%emt 0:01:00]} h5 {[%emt 0:00:07]} 21. e4 {[%emt 0:06:50]} hxg4 {[%emt 0:00:58]} 22. f4 {[%emt 0:09:41]} gxf3 {[%emt 0:00:42]} 23. Bxf3 {[%emt 0:00:55]} Qg5+ {[%emt 0:00:12]} 24. Kh1 {[%emt 0:08:03]} Qh4+ {[%emt 0:01:08]} 25. Kg1 {[%emt 0:00:27]} Bh6 {[%emt 0:00:28]} 0-1

[Event "Vienna Chess Open 2019"]
[Site "Vienna"]
[Date "2019.08.23"]
[Round "8.12"]
[White "Kummer, Helmut"]
[Black "Valmana Canto, Jaime"]
[Result "0-1"]
[ECO "E73"]
[WhiteElo "2406"]
[BlackElo "2406"]
[Annotator "NA"]
[PlyCount "134"]
[EventDate "2019.08.17"]
[EventType "swiss"]
[EventCountry "AUT"]
[SourceTitle "playchess.com"]
[Source "ChessBase"]
[SourceQuality "1"]
[TimeControl "40/5400+30:1800+30"]

1. d4 {[%emt 0:00:36]} Nf6 {[%emt 0:00:00]} 2. c4 {[%emt 0:00:04]} g6 {[%emt 0:00:00]} 3. Nc3 {[%emt 0:00:14]} Bg7 {[%emt 0:00:00]} 4. e4 {[%emt 0:00:06]} d6 {[%emt 0:00:00]} 5. Be2 {[%emt 0:00:15]} O-O {[%emt 0:00:24]} 6. Bg5 {[%emt 0:00:10]} Na6 {[%emt 0:00:13]} 7. Qd2 {[%emt 0:00:27]} e5 {[%emt 0:00:37]} 8. d5 {[%emt 0:00:17]} Qe8 {[%emt 0:00:55]} 9. Bd3 {[%emt 0:03:35]} Nh5 {[%emt 0:12:53]} 10. Nge2 {[%emt 0:00:06]} f5 {[%emt 0:00:12]} 11. f3 {[%emt 0:01:35]} Nc5 {[%emt 0:04:02]} 12. Bc2 {[%emt 0:00:15]} a5 {[%emt 0:00:06]} 13. b3 {[%emt 0:08:05]} Bd7 {[%emt 0:03:55]} 14. O-O-O {[%emt 0:00:47]} Nf6 {[%emt 0:10:24]} 15. h3 {[%emt 0:02:20]} fxe4 {[%emt 0:12:25]} 16. fxe4 {[%emt 0:04:09]} Kh8 {[%emt 0:00:39]} 17. Rdf1 {[%emt 0:06:28]} Ng8 {[%emt 0:00:16]} 18. g4 {[%emt 0:01:22]} Ne7 {[%emt 0:04:32]} 19. Ng3 {[%emt 0:00:36]} Nc8 {[%emt 0:00:17]} 20. Bd1 {[%emt 0:00:25]} Nb6 {[%emt 0:01:40]} 21. Be2 {[%emt 0:00:41]} Na6 {[%emt 0:05:01]} 22. Nb5 {[%emt 0:21:02]} Bxb5 {[%emt 0:05:03]} 23. cxb5 {[%emt 0:00:04]} Nc5 {[%emt 0:00:06]} 24. h4 {[%emt 0:01:05]} Rxf1+ {[%emt 0:02:41]} 25. Rxf1 {[%emt 0:00:32]} Qd7 {[%emt 0:05:49]} 26. Bh6 {[%emt 0:09:34]} Bxh6 {[%emt 0:02:38]} 27. Qxh6 {[%emt 0:00:04]} Qg7 {[%emt 0:00:05]} 28. Qxg7+ {[%emt 0:09:31]} Kxg7 {[%emt 0:00:08]} 29. g5 {[%emt 0:00:24]} Nbd7 {[%emt 0:03:45]} 30. Kd2 {[%emt 0:00:28]} Rf8 {[%emt 0:01:50]} 31. Ke3 {[%emt 0:00:43]} h6 {[%emt 0:03:48]} 32. Rxf8 {[%emt 0:05:15]} Nxf8 {[%emt 0:00:08]} 33. gxh6+ {[%emt 0:00:15]} Kxh6 {[%emt 0:00:07]} 34. Bd1 {[%emt 0:02:51]} Nfd7 {[%emt 0:01:14]} 35. Be2 {[%emt 0:01:53]} a4 {[%emt 0:06:55]} 36. b4 {[%emt 0:01:51]} Nb3 {[%emt 0:00:06]} 37. Bd1 {[%emt 0:00:04]} Nd4 {[%emt 0:00:38]} 38. Bxa4 {[%emt 0:06:07]} Nb6 {[%emt 0:00:14]} 39. Bb3 {[%emt 0:01:34]} Nxb3 {[%emt 0:08:39]} 40. axb3 {[%emt 0:00:06]} Nc8 {[%emt 0:00:04]} 41. Kd3 {[%emt 0:30:10]} b6 {[%emt 0:30:06]} 42. Kc3 {[%emt 0:07:15]} Na7 {[%emt 0:00:23]} 43. Kc4 {[%emt 0:00:07]} Kg7 {[%emt 0:00:22]} 44. Kd3 {[%emt 0:00:00]} Nxb5 {[%emt 0:00:00]} 45. h5 {[%emt 0:00:00]} g5 {[%emt 0:00:00]} 46. Nf5+ {[%emt 0:00:00]} Kh7 {[%emt 0:00:00]} 47. Ke3 {[%emt 0:00:00]} Nd4 {[%emt 0:00:00]} 48. Kf2 {[%emt 0:00:00]} Nxb3 {[%emt 0:00:00]} 49. Kf3 {[%emt 0:00:00]} Nd2+ {[%emt 0:00:00]} 50. Ke3 {[%emt 0:00:00]} Nb1 {[%emt 0:00:00]} 51. Kf3 {[%emt 0:01:48]} Nc3 {[%emt 0:00:00]} 52. Ng3 {[%emt 0:01:21]} Na2 {[%emt 0:00:00]} 53. Kg4 {[%emt 0:00:21]} Nxb4 {[%emt 0:00:00]} 54. Kxg5 {[%emt 0:00:03]} Nd3 {[%emt 0:00:00]} 55. Kg4 {[%emt 0:00:55]} b5 {[%emt 0:00:00]} 56. Kf3 {[%emt 0:00:06]} Nf4 {[%emt 0:00:00]} 57. Ke3 {[%emt 0:00:06]} Kh6 {[%emt 0:00:00]} 58. Nf5+ {[%emt 0:05:21]} Kxh5 {[%emt 0:00:00]} 59. Ng7+ {[%emt 0:00:20]} Kg4 {[%emt 0:00:00]} 60. Ne6 {[%emt 0:00:21]} c5 {[%emt 0:00:00]} 61. Nc7 {[%emt 0:01:20]} b4 {[%emt 0:00:00]} 62. Nb5 {[%emt 0:00:06]} c4 {[%emt 0:00:00]} 63. Nxd6 {[%emt 0:00:45]} c3 {[%emt 0:00:00]} 64. Nb5 {[%emt 0:02:47]} c2 {[%emt 0:00:00]} 65. Kd2 {[%emt 0:00:07]} b3 {[%emt 0:00:00]} 66. Nc3 {[%emt 0:02:38]} Kg5 {[%emt 0:00:00]} 67. d6 {[%emt 0:00:51]} Kf6 {[%emt 0:00:00]} 0-1

[Event "Vienna Chess Open 2019"]
[Site "Vienna"]
[Date "2019.08.23"]
[Round "8.12"]
[White "Soysal, Serkan"]
[Black "Kindermann, Stefan"]
[Result "1-0"]
[ECO "A80"]
[WhiteElo "2388"]
[BlackElo "2388"]
[Annotator "NA"]
[PlyCount "73"]
[EventDate "2019.08.17"]
[EventType "swiss"]
[EventCountry "AUT"]
[SourceTitle "playchess.com"]
[Source "ChessBase"]
[SourceQuality "1"]
[TimeControl "40/5400+30:1800+30"]

1. d4 {[%emt 0:00:00]} f5 {[%emt 0:00:00]} 2. Nc3 {[%emt 0:00:14]} Nf6 {[%emt 0:00:19]} 3. Bg5 {[%emt 0:00:10]} d5 {[%emt 0:00:14]} 4. Bxf6 {[%emt 0:00:25]} exf6 {[%emt 0:00:10]} 5. e3 {[%emt 0:00:10]} Be6 {[%emt 0:01:36]} 6. Qf3 {[%emt 0:01:02]} Qd7 {[%emt 0:03:21]} 7. Bb5 {[%emt 0:01:31]} c6 {[%emt 0:03:52]} 8. Bd3 {[%emt 0:00:03]} Bd6 {[%emt 0:02:29]} 9. Nge2 {[%emt 0:00:15]} g6 {[%emt 0:01:48]} 10. h3 {[%emt 0:00:47]} Na6 {[%emt 0:09:44]} 11. Bxa6 {[%emt 0:06:10]} bxa6 {[%emt 0:00:35]} 12. b3 {[%emt 0:00:13]} g5 {[%emt 0:14:12]} 13. g3 {[%emt 0:01:52]} O-O-O {[%emt 0:02:41]} 14. O-O-O {[%emt 0:02:32]} h5 {[%emt 0:08:04]} 15. h4 {[%emt 0:02:23]} f4 {[%emt 0:01:17]} 16. exf4 {[%emt 0:00:27]} gxf4 {[%emt 0:00:35]} 17. Qd3 {[%emt 0:06:43]} fxg3 {[%emt 0:01:41]} 18. fxg3 {[%emt 0:02:07]} Bg4 {[%emt 0:03:19]} 19. Qxa6+ {[%emt 0:09:07]} Qb7 {[%emt 0:02:54]} 20. Qxb7+ {[%emt 0:17:08]} Kxb7 {[%emt 0:00:10]} 21. Rde1 {[%emt 0:00:04]} Rhg8 {[%emt 0:13:52]} 22. Rhf1 {[%emt 0:10:25]} Bb4 {[%emt 0:03:35]} 23. Kb2 {[%emt 0:20:55]} Bxe2 {[%emt 0:03:28]} 24. Rxe2 {[%emt 0:00:02]} Rxg3 {[%emt 0:00:39]} 25. Na4 {[%emt 0:00:04]} Rg4 {[%emt 0:03:42]} 26. Rxf6 {[%emt 0:00:44]} Rd7 {[%emt 0:01:07]} 27. a3 {[%emt 0:03:34]} Be7 {[%emt 0:01:53]} 28. Rfe6 {[%emt 0:00:44]} Bf8 {[%emt 0:02:08]} 29. Re8 {[%emt 0:03:34]} Bd6 {[%emt 0:01:41]} 30. Nc5+ {[%emt 0:03:02]} Bxc5 {[%emt 0:00:34]} 31. dxc5 {[%emt 0:00:02]} Rxh4 {[%emt 0:01:26]} 32. Rh8 {[%emt 0:00:04]} Rg4 {[%emt 0:04:45]} 33. Ree8 {[%emt 0:03:21]} h4 {[%emt 0:00:33]} 34. Rb8+ {[%emt 0:00:13]} Ka6 {[%emt 0:00:10]} 35. Rh6 {[%emt 0:00:22]} Rc7 {[%emt 0:00:15]} 36. b4 {[%emt 0:00:14]} Rc4 {[%emt 0:00:35]} 37. Kb3 {[%emt 0:01:21]} 1-0

[Event "Vienna Chess Open 2019"]
[Site "Vienna"]
[Date "2019.08.23"]
[Round "8.12"]
[White "Pieper, Thomas"]
[Black "Muckle, Julius"]
[Result "0-1"]
[ECO "C11"]
[WhiteElo "2368"]
[BlackElo "2368"]
[Annotator "NA"]
[PlyCount "64"]
[EventDate "2019.08.17"]
[EventType "swiss"]
[EventCountry "AUT"]
[SourceTitle "playchess.com"]
[Source "ChessBase"]
[SourceQuality "1"]
[TimeControl "40/5400+30:1800+30"]

1. e4 {[%emt 0:00:00]} e6 {[%emt 0:00:00]} 2. d4 {[%emt 0:00:00]} d5 {[%emt 0:00:00]} 3. Nc3 {[%emt 0:00:14]} Nf6 {[%emt 0:00:00]} 4. e5 {[%emt 0:00:22]} Nfd7 {[%emt 0:00:00]} 5. f4 {[%emt 0:00:32]} c5 {[%emt 0:00:00]} 6. Nf3 {[%emt 0:00:07]} Nc6 {[%emt 0:00:00]} 7. Be3 {[%emt 0:00:14]} Be7 {[%emt 0:00:00]} 8. Qd2 {[%emt 0:00:27]} O-O {[%emt 0:00:00]} 9. dxc5 {[%emt 0:00:16]} Qa5 {[%emt 0:00:00]} 10. O-O-O {[%emt 0:00:44]} b6 {[%emt 0:00:00]} 11. Bb5 {[%emt 0:22:50]} Nb4 {[%emt 0:00:09]} 12. a3 {[%emt 0:27:57]} bxc5 {[%emt 0:00:07]} 13. Kb1 {[%emt 0:10:24]} Rb8 {[%emt 0:02:32]} 14. Bxd7 {[%emt 0:08:34]} Bxd7 {[%emt 0:01:08]} 15. axb4 {[%emt 0:05:12]} cxb4 {[%emt 0:03:01]} 16. Nxd5 {[%emt 0:00:30]} exd5 {[%emt 0:00:15]} 17. Qxd5 {[%emt 0:00:06]} Qxd5 {[%emt 0:00:08]} 18. Rxd5 {[%emt 0:00:00]} Bc6 {[%emt 0:00:06]} 19. Ra5 {[%emt 0:08:07]} Rfc8 {[%emt 0:00:05]} 20. Nd2 {[%emt 0:01:51]} Bxg2 {[%emt 0:02:19]} 21. Rg1 {[%emt 0:00:34]} Bh3 {[%emt 0:00:10]} 22. Nb3 {[%emt 0:04:00]} Bf5 {[%emt 0:03:31]} 23. Nd4 {[%emt 0:01:13]} Be4 {[%emt 0:00:22]} 24. f5 {[%emt 0:00:40]} Bd8 {[%emt 0:07:04]} 25. Rxa7 {[%emt 0:05:03]} Bb6 {[%emt 0:01:07]} 26. Ra6 {[%emt 0:01:48]} Bxd4 {[%emt 0:00:42]} 27. Bxd4 {[%emt 0:00:01]} Bxc2+ {[%emt 0:00:09]} 28. Ka2 {[%emt 0:01:11]} Ra8 {[%emt 0:00:08]} 29. Ba7 {[%emt 0:00:52]} Rc7 {[%emt 0:00:09]} 30. b3 {[%emt 0:00:27]} Rcxa7 {[%emt 0:00:07]} 31. Rxa7 {[%emt 0:00:06]} Rxa7+ {[%emt 0:00:03]} 32. Kb2 {[%emt 0:00:06]} Bxf5 {[%emt 0:00:05]} 0-1